[Event "December 5 Early 2023"]
[Site "https://www.chess.com"]
[Date "2023.12.05"]
[Round "8"]
[White "Thorfinnsson, Bjorn"]
[Black "Hua, Lefong"]
[Result "1-0"]
[Board "50"]
[TimeControl "180+1"]
[WhiteFideId "2300982"]
[BlackFideId "2602253"]
[WhiteElo "2564"]
[BlackElo "2713"]
[WhiteTeam "ISL"]
[BlackTeam "CAN"]
[WhiteClock "0:00:17"]
[BlackClock "0:00:00"]

1. d4 {[%clk 0:03:00]}  Nf6 {[%clk 0:03:00]} 2. Nf3 {[%clk 0:02:59]}  g6 {[%clk 0:03:00]} 3. Bg5 {[%clk 0:02:59]}  Bg7 {[%clk 0:03:00]} 4. e3 {[%clk 0:02:59]}  O-O {[%clk 0:03:00]} 5. Bd3 {[%clk 0:02:59]}  d6 {[%clk 0:03:01]} 6. Nbd2 {[%clk 0:02:59]}  c5 {[%clk 0:03:00]} 7. c3 {[%clk 0:02:59]}  h6 {[%clk 0:02:59]} 8. Bh4 {[%clk 0:02:59]}  Nc6 {[%clk 0:02:58]} 9. a3 {[%clk 0:02:58]}  g5 {[%clk 0:02:52]} 10. Bg3 {[%clk 0:02:56]}  Nh5 {[%clk 0:02:51]} 11. Nxg5 {[%clk 0:02:54]}  Nxg3 {[%clk 0:02:41]} 12. hxg3 {[%clk 0:02:54]}  e6 {[%clk 0:02:29]} 13. Ngf3 {[%clk 0:02:51]}  Qe7 {[%clk 0:02:24]} 14. Rc1 {[%clk 0:02:45]}  b6 {[%clk 0:02:24]} 15. Qe2 {[%clk 0:02:39]}  f5 {[%clk 0:02:21]} 16. Nh4 {[%clk 0:02:31]}  Qf6 {[%clk 0:02:14]} 17. g4 {[%clk 0:02:20]}  Bd7 {[%clk 0:02:06]} 18. gxf5 {[%clk 0:02:17]}  exf5 {[%clk 0:02:07]} 19. Qh5 {[%clk 0:02:10]}  Ne7 {[%clk 0:01:59]} 20. Ndf3 {[%clk 0:01:39]}  Be8 {[%clk 0:01:46]} 21. Ng6 {[%clk 0:01:29]}  Bxg6 {[%clk 0:01:43]} 22. Qh3 {[%clk 0:01:29]}  Rae8 {[%clk 0:01:41]} 23. Kd2 {[%clk 0:01:27]}  f4 {[%clk 0:01:38]} 24. e4 {[%clk 0:01:26]}  Nc6 {[%clk 0:01:25]} 25. Bb5 {[%clk 0:01:25]}  Bxe4 {[%clk 0:01:22]} 26. Rhe1 {[%clk 0:01:22]}  Bxf3 {[%clk 0:01:09]} 27. Qxf3 {[%clk 0:01:21]}  Rxe1 {[%clk 0:01:09]} 28. Rxe1 {[%clk 0:01:19]}  Ne7 {[%clk 0:01:08]} 29. Bc4+ {[%clk 0:01:19]}  d5 {[%clk 0:01:08]} 30. Bxd5+ {[%clk 0:01:17]}  Nxd5 {[%clk 0:01:08]} 31. Qxd5+ {[%clk 0:01:17]}  Kh8 {[%clk 0:01:09]} 32. Re6 {[%clk 0:01:14]}  Qf7 {[%clk 0:01:02]} 33. Qe4 {[%clk 0:01:10]}  cxd4 {[%clk 0:01:02]} 34. cxd4 {[%clk 0:01:10]}  Rd8 {[%clk 0:00:54]} 35. d5 {[%clk 0:01:10]}  Qh5 {[%clk 0:00:41]} 36. d6 {[%clk 0:01:05]}  Qa5+ {[%clk 0:00:30]} 37. Ke2 {[%clk 0:01:03]}  Qb5+ {[%clk 0:00:29]} 38. Kf3 {[%clk 0:01:03]}  Qb3+ {[%clk 0:00:24]} 39. Kg4 {[%clk 0:00:58]}  Qd1+ {[%clk 0:00:21]} 40. f3 {[%clk 0:00:55]}  Qd4 {[%clk 0:00:10]} 41. Re8+ {[%clk 0:00:55]}  Rxe8 {[%clk 0:00:10]} 42. Qxe8+ {[%clk 0:00:55]}  Kh7 {[%clk 0:00:11]} 43. d7 {[%clk 0:00:40]}  Bf6 {[%clk 0:00:09]} 44. Qf7+ {[%clk 0:00:39]}  Kh8 {[%clk 0:00:10]} 45. Qe8+ {[%clk 0:00:36]}  Kg7 {[%clk 0:00:09]} 46. Kf5 {[%clk 0:00:26]}  Qd5+ {[%clk 0:00:06]} 47. Kxf4 {[%clk 0:00:25]}  Bg5+ {[%clk 0:00:05]} 48. Kg4 {[%clk 0:00:24]}  Qd4+ {[%clk 0:00:06]} 49. Kf5 {[%clk 0:00:22]}  Qf4+ {[%clk 0:00:05]} 50. Ke6 {[%clk 0:00:22]}  Qf6+ {[%clk 0:00:04]} 51. Kd5 {[%clk 0:00:22]}  Qf5+ {[%clk 0:00:03]} 52. Kc6 {[%clk 0:00:22]}  Qc5+ {[%clk 0:00:03]} 53. Kb7 {[%clk 0:00:23]}  Qd6 {[%clk 0:00:04]} 54. f4 {[%clk 0:00:18]}  Bf6 {[%clk 0:00:00]} 55. g4 {[%clk 0:00:17]} 1-0

[Event "December 5 Early 2023"]
[Site "https://www.chess.com"]
[Date "2023.12.05"]
[Round "8"]
[White "Prohaszka, Peter"]
[Black "Krzywda, Andrzej"]
[Result "1-0"]
[Board "53"]
[TimeControl "180+1"]
[WhiteFideId "726265"]
[BlackFideId "1114565"]
[WhiteElo "2676"]
[BlackElo "2521"]
[WhiteTeam "HUN"]
[BlackTeam "POL"]
[WhiteClock "0:01:30"]
[BlackClock "0:00:07"]

1. e4 {[%clk 0:03:00]}  e5 {[%clk 0:02:59]} 2. Nf3 {[%clk 0:03:00]}  Nf6 {[%clk 0:03:00]} 3. Nc3 {[%clk 0:02:57]}  Bb4 {[%clk 0:03:00]} 4. Nxe5 {[%clk 0:02:47]}  O-O {[%clk 0:02:59]} 5. d3 {[%clk 0:02:31]}  d5 {[%clk 0:02:59]} 6. Bd2 {[%clk 0:02:31]}  Re8 {[%clk 0:02:37]} 7. f4 {[%clk 0:02:31]}  Bxc3 {[%clk 0:02:27]} 8. Bxc3 {[%clk 0:02:32]}  dxe4 {[%clk 0:02:15]} 9. dxe4 {[%clk 0:02:32]}  Qxd1+ {[%clk 0:02:12]} 10. Rxd1 {[%clk 0:02:32]}  Nxe4 {[%clk 0:02:12]} 11. Bc4 {[%clk 0:02:31]}  Nd6 {[%clk 0:01:44]} 12. Rxd6 {[%clk 0:02:24]}  cxd6 {[%clk 0:01:44]} 13. Bxf7+ {[%clk 0:02:24]}  Kf8 {[%clk 0:01:40]} 14. Bxe8 {[%clk 0:02:25]}  dxe5 {[%clk 0:01:37]} 15. Ba4 {[%clk 0:02:16]}  exf4 {[%clk 0:01:31]} 16. O-O {[%clk 0:01:57]}  g5 {[%clk 0:01:31]} 17. h4 {[%clk 0:01:55]}  h6 {[%clk 0:01:29]} 18. Bf6 {[%clk 0:01:51]}  Bd7 {[%clk 0:01:08]} 19. Bb3 {[%clk 0:01:50]}  Bb5 {[%clk 0:01:07]} 20. c4 {[%clk 0:01:47]}  Bc6 {[%clk 0:00:58]} 21. hxg5 {[%clk 0:01:48]}  Nd7 {[%clk 0:00:56]} 22. Rxf4 {[%clk 0:01:47]}  hxg5 {[%clk 0:00:53]} 23. Bxg5+ {[%clk 0:01:47]}  Kg7 {[%clk 0:00:53]} 24. Rg4 {[%clk 0:01:38]}  Ne5 {[%clk 0:00:48]} 25. Rg3 {[%clk 0:01:38]}  Nf7 {[%clk 0:00:16]} 26. Be7+ {[%clk 0:01:36]}  Kh8 {[%clk 0:00:12]} 27. Bc2 {[%clk 0:01:30]}  Ne5 {[%clk 0:00:07]} 28. Bf6# {[%clk 0:01:30]} 1-0

[Event "December 5 Early 2023"]
[Site "https://www.chess.com"]
[Date "2023.12.05"]
[Round "8"]
[White "Goryachkina, Aleksandra"]
[Black "Ljukin, Sergei"]
[Result "1-0"]
[Board "54"]
[TimeControl "180+1"]
[WhiteFideId "4147103"]
[BlackFideId "14102200"]
[WhiteElo "2671"]
[BlackElo "2494"]
[WhiteTeam "FID"]
[BlackTeam "UKR"]
[WhiteClock "0:00:27"]
[BlackClock "0:00:08"]

1. e4 {[%clk 0:02:59]}  e6 {[%clk 0:03:00]} 2. d4 {[%clk 0:02:58]}  d5 {[%clk 0:03:00]} 3. Nd2 {[%clk 0:02:58]}  Nf6 {[%clk 0:03:00]} 4. e5 {[%clk 0:02:58]}  Nfd7 {[%clk 0:03:01]} 5. Bd3 {[%clk 0:02:58]}  c5 {[%clk 0:03:01]} 6. c3 {[%clk 0:02:58]}  Nc6 {[%clk 0:03:02]} 7. Ne2 {[%clk 0:02:58]}  cxd4 {[%clk 0:03:02]} 8. cxd4 {[%clk 0:02:56]}  f6 {[%clk 0:03:03]} 9. exf6 {[%clk 0:02:55]}  Qxf6 {[%clk 0:03:03]} 10. Nf3 {[%clk 0:02:54]}  h6 {[%clk 0:03:03]} 11. O-O {[%clk 0:02:51]}  Bd6 {[%clk 0:03:03]} 12. Ng3 {[%clk 0:02:40]}  O-O {[%clk 0:03:03]} 13. Bc2 {[%clk 0:02:37]}  Rd8 {[%clk 0:02:58]} 14. Nh5 {[%clk 0:02:14]}  Qf7 {[%clk 0:02:58]} 15. Nh4 {[%clk 0:02:11]}  Nf6 {[%clk 0:02:47]} 16. Bg6 {[%clk 0:01:44]}  Qf8 {[%clk 0:02:45]} 17. Bf4 {[%clk 0:01:38]}  Nxh5 {[%clk 0:02:07]} 18. Bxd6 {[%clk 0:01:36]}  Rxd6 {[%clk 0:02:07]} 19. Qxh5 {[%clk 0:01:26]}  Nxd4 {[%clk 0:02:02]} 20. Rad1 {[%clk 0:01:24]}  Nc6 {[%clk 0:02:01]} 21. f4 {[%clk 0:01:19]}  Bd7 {[%clk 0:01:56]} 22. Bb1 {[%clk 0:00:47]}  Ne7 {[%clk 0:01:29]} 23. Nf3 {[%clk 0:00:37]}  Qxf4 {[%clk 0:00:09]} 24. Ne5 {[%clk 0:00:32]}  Qg5 {[%clk 0:00:09]} 25. Qf7+ {[%clk 0:00:28]}  Kh8 {[%clk 0:00:08]} 26. Qf8+ {[%clk 0:00:26]}  Rxf8 {[%clk 0:00:08]} 27. Rxf8+ {[%clk 0:00:27]}  Ng8 {[%clk 0:00:08]} 28. Nf7# {[%clk 0:00:27]} 1-0

[Event "December 5 Early 2023"]
[Site "https://www.chess.com"]
[Date "2023.12.05"]
[Round "8"]
[White "Hjartarson, Johann"]
[Black "Galchenko, Matvey"]
[Result "1-0"]
[Board "55"]
[TimeControl "180+1"]
[WhiteFideId "2300044"]
[BlackFideId "24175480"]
[WhiteElo "2591"]
[BlackElo "2928"]
[WhiteTeam "ISL"]
[BlackTeam "FID"]
[WhiteClock "0:00:36"]
[BlackClock "0:00:03"]

1. c4 {[%clk 0:03:00]}  e6 {[%clk 0:02:55]} 2. Nc3 {[%clk 0:02:58]}  d5 {[%clk 0:02:55]} 3. d4 {[%clk 0:02:58]}  c6 {[%clk 0:02:56]} 4. e4 {[%clk 0:02:58]}  dxe4 {[%clk 0:02:56]} 5. Nxe4 {[%clk 0:02:58]}  Bb4+ {[%clk 0:02:56]} 6. Bd2 {[%clk 0:02:58]}  Qxd4 {[%clk 0:02:56]} 7. Bxb4 {[%clk 0:02:58]}  Qxe4+ {[%clk 0:02:57]} 8. Be2 {[%clk 0:02:58]}  Na6 {[%clk 0:02:57]} 9. Bd6 {[%clk 0:02:58]}  Qxg2 {[%clk 0:02:50]} 10. Qd2 {[%clk 0:02:58]}  e5 {[%clk 0:02:29]} 11. Bf3 {[%clk 0:02:49]}  Qg6 {[%clk 0:02:28]} 12. Bxe5 {[%clk 0:02:39]}  Bf5 {[%clk 0:02:06]} 13. O-O-O {[%clk 0:02:30]}  Ne7 {[%clk 0:01:53]} 14. Ne2 {[%clk 0:02:26]}  Nc5 {[%clk 0:01:52]} 15. Nf4 {[%clk 0:02:07]}  Qh6 {[%clk 0:01:40]} 16. Rhg1 {[%clk 0:02:07]}  f6 {[%clk 0:01:30]} 17. Bd6 {[%clk 0:02:00]}  O-O-O {[%clk 0:00:44]} 18. Qe3 {[%clk 0:01:54]}  Rxd6 {[%clk 0:00:12]} 19. Rxd6 {[%clk 0:01:49]}  Ng6 {[%clk 0:00:12]} 20. Nh5 {[%clk 0:01:27]}  Nd3+ {[%clk 0:00:05]} 21. Kd2 {[%clk 0:01:17]}  Qxe3+ {[%clk 0:00:06]} 22. fxe3 {[%clk 0:01:12]}  Nde5 {[%clk 0:00:07]} 23. Be2 {[%clk 0:01:08]}  Kc7 {[%clk 0:00:07]} 24. Rd4 {[%clk 0:01:07]}  c5 {[%clk 0:00:07]} 25. Rd5 {[%clk 0:01:03]}  Be6 {[%clk 0:00:06]} 26. Rxc5+ {[%clk 0:01:00]}  Kd6 {[%clk 0:00:06]} 27. Rb5 {[%clk 0:00:59]}  Bxc4 {[%clk 0:00:04]} 28. Rxb7 {[%clk 0:00:56]}  Bd5 {[%clk 0:00:03]} 29. Rxg7 {[%clk 0:00:53]}  a5 {[%clk 0:00:02]} 30. Nxf6 {[%clk 0:00:52]}  Bc6 {[%clk 0:00:03]} 31. Kc3 {[%clk 0:00:49]}  Rf8 {[%clk 0:00:03]} 32. Rd1+ {[%clk 0:00:47]}  Ke6 {[%clk 0:00:01]} 33. Nxh7 {[%clk 0:00:46]}  Rf2 {[%clk 0:00:02]} 34. Rd2 {[%clk 0:00:41]}  Rf6 {[%clk 0:00:01]} 35. Nxf6 {[%clk 0:00:40]}  Kxf6 {[%clk 0:00:02]} 36. Rxg6+ {[%clk 0:00:39]}  Nxg6 {[%clk 0:00:02]} 37. Rd6+ {[%clk 0:00:36]}  Ke5 {[%clk 0:00:03]} 1-0

[Event "December 5 Early 2023"]
[Site "https://www.chess.com"]
[Date "2023.12.05"]
[Round "8"]
[White "1mbl4"]
[Black "Yeremyan, Alen"]
[Result "0-1"]
[Board "57"]
[TimeControl "180+1"]
[BlackFideId "13308998"]
[WhiteElo "2580"]
[BlackElo "2789"]
[BlackTeam "ARM"]
[WhiteClock "0:00:08"]
[BlackClock "0:01:02"]

1. d4 {[%clk 0:03:00]}  Nf6 {[%clk 0:02:58]} 2. Bf4 {[%clk 0:03:00]}  g6 {[%clk 0:02:58]} 3. Nc3 {[%clk 0:03:00]}  d5 {[%clk 0:02:59]} 4. e3 {[%clk 0:02:59]}  Bg7 {[%clk 0:02:58]} 5. h4 {[%clk 0:03:00]}  O-O {[%clk 0:02:58]} 6. h5 {[%clk 0:03:00]}  c6 {[%clk 0:02:55]} 7. Bd3 {[%clk 0:02:54]}  c5 {[%clk 0:02:38]} 8. dxc5 {[%clk 0:02:47]}  Nc6 {[%clk 0:02:34]} 9. hxg6 {[%clk 0:02:39]}  hxg6 {[%clk 0:02:33]} 10. Nf3 {[%clk 0:02:33]}  Bg4 {[%clk 0:02:32]} 11. Be2 {[%clk 0:02:29]}  Qa5 {[%clk 0:02:29]} 12. O-O {[%clk 0:02:18]}  Qxc5 {[%clk 0:02:29]} 13. Bg5 {[%clk 0:02:14]}  Ne4 {[%clk 0:02:18]} 14. Bh4 {[%clk 0:01:34]}  Nxc3 {[%clk 0:01:48]} 15. bxc3 {[%clk 0:01:33]}  Bxc3 {[%clk 0:01:49]} 16. Rb1 {[%clk 0:01:32]}  b6 {[%clk 0:01:48]} 17. Bg3 {[%clk 0:01:15]}  e6 {[%clk 0:01:47]} 18. Qd3 {[%clk 0:01:07]}  Bg7 {[%clk 0:01:46]} 19. Rb5 {[%clk 0:01:04]}  Qe7 {[%clk 0:01:44]} 20. c4 {[%clk 0:00:52]}  Rad8 {[%clk 0:01:40]} 21. cxd5 {[%clk 0:00:46]}  exd5 {[%clk 0:01:40]} 22. Rc1 {[%clk 0:00:45]}  d4 {[%clk 0:01:37]} 23. Rxc6 {[%clk 0:00:41]}  Bd7 {[%clk 0:01:33]} 24. Bd6 {[%clk 0:00:33]}  Qe6 {[%clk 0:01:26]} 25. Bxf8 {[%clk 0:00:31]}  Bxc6 {[%clk 0:01:26]} 26. Bxg7 {[%clk 0:00:25]}  Bxb5 {[%clk 0:01:26]} 27. Qxb5 {[%clk 0:00:25]}  Kxg7 {[%clk 0:01:21]} 28. Nxd4 {[%clk 0:00:25]}  Qd5 {[%clk 0:01:19]} 29. Qb2 {[%clk 0:00:23]}  Kg8 {[%clk 0:01:17]} 30. Bf3 {[%clk 0:00:24]}  Qe5 {[%clk 0:01:13]} 31. Qc2 {[%clk 0:00:21]}  Kg7 {[%clk 0:01:08]} 32. Ne6+ {[%clk 0:00:18]}  Qxe6 {[%clk 0:01:07]} 33. Qc7 {[%clk 0:00:17]}  Qd6 {[%clk 0:01:02]} 34. Qc3+ {[%clk 0:00:08]}  Kg8 {[%clk 0:01:02]} 0-1

[Event "December 5 Early 2023"]
[Site "https://www.chess.com"]
[Date "2023.12.05"]
[Round "8"]
[White "Morgunov, Marc"]
[Black "Halkias, Stelios"]
[Result "0-1"]
[Board "58"]
[TimeControl "180+1"]
[WhiteFideId "1640305"]
[BlackFideId "4201809"]
[WhiteElo "2577"]
[BlackElo "2760"]
[WhiteTeam "AUT"]
[BlackTeam "GRE"]
[WhiteClock "0:00:00"]
[BlackClock "0:00:05"]

1. e4 {[%clk 0:03:00]}  e5 {[%clk 0:02:57]} 2. Nf3 {[%clk 0:03:00]}  Nc6 {[%clk 0:02:58]} 3. Bb5 {[%clk 0:03:00]}  a6 {[%clk 0:02:57]} 4. Ba4 {[%clk 0:03:00]}  Nf6 {[%clk 0:02:57]} 5. O-O {[%clk 0:03:00]}  Be7 {[%clk 0:02:57]} 6. Re1 {[%clk 0:03:01]}  b5 {[%clk 0:02:57]} 7. Bb3 {[%clk 0:03:01]}  d6 {[%clk 0:02:57]} 8. c3 {[%clk 0:03:01]}  O-O {[%clk 0:02:55]} 9. a4 {[%clk 0:03:01]}  Bb7 {[%clk 0:02:45]} 10. Qe2 {[%clk 0:03:00]}  Nb8 {[%clk 0:02:35]} 11. Bc2 {[%clk 0:02:39]}  Nbd7 {[%clk 0:02:35]} 12. d4 {[%clk 0:02:37]}  c6 {[%clk 0:02:24]} 13. Nbd2 {[%clk 0:02:36]}  Re8 {[%clk 0:02:25]} 14. b4 {[%clk 0:02:29]}  Bf8 {[%clk 0:02:24]} 15. Qd3 {[%clk 0:02:15]}  c5 {[%clk 0:02:15]} 16. axb5 {[%clk 0:02:06]}  axb5 {[%clk 0:02:14]} 17. Rxa8 {[%clk 0:02:06]}  Qxa8 {[%clk 0:02:13]} 18. Qxb5 {[%clk 0:01:51]}  cxd4 {[%clk 0:02:11]} 19. cxd4 {[%clk 0:01:51]}  Rb8 {[%clk 0:01:18]} 20. Qd3 {[%clk 0:01:32]}  Ba6 {[%clk 0:01:18]} 21. Qb3 {[%clk 0:01:22]}  d5 {[%clk 0:01:17]} 22. Nxe5 {[%clk 0:01:13]}  Nxe5 {[%clk 0:00:50]} 23. dxe5 {[%clk 0:01:14]}  Rxb4 {[%clk 0:00:50]} 24. Qa2 {[%clk 0:00:52]}  Nxe4 {[%clk 0:00:43]} 25. Nxe4 {[%clk 0:00:52]}  dxe4 {[%clk 0:00:42]} 26. Bb3 {[%clk 0:00:51]}  Qb7 {[%clk 0:00:35]} 27. Bxf7+ {[%clk 0:00:49]}  Qxf7 {[%clk 0:00:35]} 28. Qxa6 {[%clk 0:00:49]}  Qc4 {[%clk 0:00:22]} 29. Qxc4+ {[%clk 0:00:05]}  Rxc4 {[%clk 0:00:21]} 30. Bf4 {[%clk 0:00:06]}  Kf7 {[%clk 0:00:20]} 31. Rb1 {[%clk 0:00:05]}  Ke6 {[%clk 0:00:19]} 32. Kf1 {[%clk 0:00:05]}  Bc5 {[%clk 0:00:18]} 33. Ke2 {[%clk 0:00:03]}  Rc2+ {[%clk 0:00:17]} 34. Bd2 {[%clk 0:00:03]}  Bxf2 {[%clk 0:00:14]} 35. Kxf2 {[%clk 0:00:03]}  Rxd2+ {[%clk 0:00:14]} 36. Ke3 {[%clk 0:00:03]}  Rxg2 {[%clk 0:00:14]} 37. Kxe4 {[%clk 0:00:03]}  Rxh2 {[%clk 0:00:14]} 38. Rb6+ {[%clk 0:00:04]}  Kf7 {[%clk 0:00:14]} 39. Rb7+ {[%clk 0:00:04]}  Kg6 {[%clk 0:00:13]} 40. Rb6+ {[%clk 0:00:04]}  Kg5 {[%clk 0:00:13]} 41. Rb7 {[%clk 0:00:05]}  g6 {[%clk 0:00:12]} 42. Kd5 {[%clk 0:00:05]}  h5 {[%clk 0:00:08]} 43. e6 {[%clk 0:00:04]}  Re2 {[%clk 0:00:08]} 44. Kd6 {[%clk 0:00:03]}  h4 {[%clk 0:00:07]} 45. e7 {[%clk 0:00:00]}  Kg4 {[%clk 0:00:05]} 0-1

[Event "December 5 Early 2023"]
[Site "https://www.chess.com"]
[Date "2023.12.05"]
[Round "8"]
[White "Sokolovsky, Yahli"]
[Black "Tifferet, Shakked"]
[Result "1-0"]
[Board "60"]
[TimeControl "180+1"]
[WhiteFideId "2820242"]
[BlackFideId "2811529"]
[WhiteElo "2747"]
[BlackElo "2561"]
[WhiteTeam "ISR"]
[BlackTeam "ISR"]
[WhiteClock "0:00:05"]
[BlackClock "0:00:00"]

1. b3 {[%clk 0:03:00]}  d6 {[%clk 0:02:59]} 2. Bb2 {[%clk 0:03:01]}  e5 {[%clk 0:02:59]} 3. c4 {[%clk 0:02:52]}  Nd7 {[%clk 0:02:58]} 4. e3 {[%clk 0:02:43]}  Ngf6 {[%clk 0:02:56]} 5. d4 {[%clk 0:02:44]}  g6 {[%clk 0:02:56]} 6. Nf3 {[%clk 0:02:38]}  exd4 {[%clk 0:02:55]} 7. exd4 {[%clk 0:02:37]}  Bg7 {[%clk 0:02:55]} 8. Be2 {[%clk 0:02:23]}  O-O {[%clk 0:02:55]} 9. O-O {[%clk 0:02:24]}  Re8 {[%clk 0:02:55]} 10. Nc3 {[%clk 0:02:18]}  Nb6 {[%clk 0:02:51]} 11. d5 {[%clk 0:02:13]}  Bg4 {[%clk 0:02:42]} 12. Qd2 {[%clk 0:02:04]}  Nbd7 {[%clk 0:02:34]} 13. h3 {[%clk 0:01:57]}  Bxf3 {[%clk 0:02:34]} 14. Bxf3 {[%clk 0:01:55]}  Nc5 {[%clk 0:02:33]} 15. Rfe1 {[%clk 0:01:53]}  Qd7 {[%clk 0:02:31]} 16. b4 {[%clk 0:01:47]}  Na4 {[%clk 0:02:24]} 17. Nxa4 {[%clk 0:01:47]}  Qxa4 {[%clk 0:02:25]} 18. a3 {[%clk 0:01:24]}  Rxe1+ {[%clk 0:02:01]} 19. Rxe1 {[%clk 0:01:24]}  Re8 {[%clk 0:02:02]} 20. Bd1 {[%clk 0:01:11]}  Qd7 {[%clk 0:01:57]} 21. Bc2 {[%clk 0:01:11]}  Nh5 {[%clk 0:01:28]} 22. Bc1 {[%clk 0:01:07]}  Be5 {[%clk 0:01:24]} 23. Re4 {[%clk 0:00:47]}  f5 {[%clk 0:01:07]} 24. Re1 {[%clk 0:00:38]}  Bf4 {[%clk 0:01:04]} 25. Qd1 {[%clk 0:00:37]}  Rxe1+ {[%clk 0:01:00]} 26. Qxe1 {[%clk 0:00:37]}  Bxc1 {[%clk 0:01:00]} 27. Qxc1 {[%clk 0:00:38]}  Qe7 {[%clk 0:00:58]} 28. Qe3 {[%clk 0:00:36]}  Qxe3 {[%clk 0:00:55]} 29. fxe3 {[%clk 0:00:37]}  Nf6 {[%clk 0:00:53]} 30. Kf2 {[%clk 0:00:36]}  Kf7 {[%clk 0:00:48]} 31. Kf3 {[%clk 0:00:36]}  Nd7 {[%clk 0:00:46]} 32. Bb3 {[%clk 0:00:18]}  Kf6 {[%clk 0:00:45]} 33. e4 {[%clk 0:00:13]}  h5 {[%clk 0:00:25]} 34. exf5 {[%clk 0:00:09]}  Kxf5 {[%clk 0:00:26]} 35. Bc2+ {[%clk 0:00:09]}  Kf6 {[%clk 0:00:23]} 36. Ke4 {[%clk 0:00:06]}  b6 {[%clk 0:00:18]} 37. Kd4 {[%clk 0:00:03]}  g5 {[%clk 0:00:16]} 38. Bd1 {[%clk 0:00:02]}  h4 {[%clk 0:00:14]} 39. Bg4 {[%clk 0:00:03]}  Ne5 {[%clk 0:00:13]} 40. Be2 {[%clk 0:00:02]}  Ng6 {[%clk 0:00:12]} 41. c5 {[%clk 0:00:01]}  Nf4 {[%clk 0:00:13]} 42. Bf1 {[%clk 0:00:02]}  Ke7 {[%clk 0:00:11]} 43. Ke4 {[%clk 0:00:02]}  bxc5 {[%clk 0:00:10]} 44. bxc5 {[%clk 0:00:03]}  dxc5 {[%clk 0:00:10]} 45. Kf5 {[%clk 0:00:04]}  Nxd5 {[%clk 0:00:09]} 46. Kxg5 {[%clk 0:00:04]}  Ne3 {[%clk 0:00:10]} 47. Bd3 {[%clk 0:00:05]}  c4 {[%clk 0:00:10]} 48. Be4 {[%clk 0:00:05]}  c3 {[%clk 0:00:10]} 49. Kxh4 {[%clk 0:00:06]}  c2 {[%clk 0:00:11]} 50. Bxc2 {[%clk 0:00:07]}  Nxc2 {[%clk 0:00:11]} 51. a4 {[%clk 0:00:07]}  Nd4 {[%clk 0:00:11]} 52. Kg4 {[%clk 0:00:07]}  c5 {[%clk 0:00:12]} 53. Kf4 {[%clk 0:00:07]}  c4 {[%clk 0:00:11]} 54. Ke4 {[%clk 0:00:08]}  c3 {[%clk 0:00:08]} 55. Kd3 {[%clk 0:00:08]}  c2 {[%clk 0:00:08]} 56. Kd2 {[%clk 0:00:09]}  Kf6 {[%clk 0:00:08]} 57. h4 {[%clk 0:00:07]}  Kf5 {[%clk 0:00:07]} 58. h5 {[%clk 0:00:07]}  Kg5 {[%clk 0:00:06]} 59. g4 {[%clk 0:00:08]}  a5 {[%clk 0:00:05]} 60. Kc1 {[%clk 0:00:08]}  Nf3 {[%clk 0:00:03]} 61. Kxc2 {[%clk 0:00:08]}  Ne5 {[%clk 0:00:04]} 62. Kc3 {[%clk 0:00:08]}  Nc6 {[%clk 0:00:03]} 63. Kc4 {[%clk 0:00:08]}  Kxg4 {[%clk 0:00:03]} 64. h6 {[%clk 0:00:08]}  Ne5+ {[%clk 0:00:03]} 65. Kb5 {[%clk 0:00:08]}  Nf7 {[%clk 0:00:03]} 66. h7 {[%clk 0:00:08]}  Kf5 {[%clk 0:00:03]} 67. Kxa5 {[%clk 0:00:09]}  Kg6 {[%clk 0:00:04]} 68. Kb6 {[%clk 0:00:07]}  Kxh7 {[%clk 0:00:05]} 69. Kc7 {[%clk 0:00:05]}  Ng5 {[%clk 0:00:03]} 70. a5 {[%clk 0:00:04]}  Ne6+ {[%clk 0:00:03]} 71. Kb6 {[%clk 0:00:04]}  Nf4 {[%clk 0:00:01]} 72. a6 {[%clk 0:00:05]}  Nd5+ {[%clk 0:00:00]} 73. Kb7 {[%clk 0:00:05]} 1-0

[Event "December 5 Early 2023"]
[Site "https://www.chess.com"]
[Date "2023.12.05"]
[Round "8"]
[White "Gabrielian, Artur"]
[Black "Shuvalov, Evgenij"]
[Result "1-0"]
[Board "61"]
[TimeControl "180+1"]
[WhiteFideId "4131002"]
[BlackFideId "4187237"]
[WhiteElo "2715"]
[BlackElo "2559"]
[WhiteTeam "RUS"]
[BlackTeam "FID"]
[WhiteClock "0:00:13"]
[BlackClock "0:00:17"]

1. e4 {[%clk 0:03:00]}  e6 {[%clk 0:02:59]} 2. d4 {[%clk 0:03:00]}  d5 {[%clk 0:03:00]} 3. Nc3 {[%clk 0:03:00]}  Bb4 {[%clk 0:03:00]} 4. e5 {[%clk 0:03:01]}  c5 {[%clk 0:03:00]} 5. a3 {[%clk 0:03:01]}  Bxc3+ {[%clk 0:03:00]} 6. bxc3 {[%clk 0:03:01]}  Ne7 {[%clk 0:03:01]} 7. Qg4 {[%clk 0:03:01]}  Qc7 {[%clk 0:03:01]} 8. Qxg7 {[%clk 0:03:01]}  Rg8 {[%clk 0:03:02]} 9. Qxh7 {[%clk 0:03:01]}  cxd4 {[%clk 0:03:02]} 10. Ne2 {[%clk 0:03:00]}  Nbc6 {[%clk 0:03:03]} 11. f4 {[%clk 0:02:56]}  Bd7 {[%clk 0:03:03]} 12. Qd3 {[%clk 0:02:56]}  dxc3 {[%clk 0:03:03]} 13. Qxc3 {[%clk 0:02:54]}  Nf5 {[%clk 0:03:00]} 14. Rb1 {[%clk 0:02:51]}  d4 {[%clk 0:02:58]} 15. Qd3 {[%clk 0:02:46]}  Na5 {[%clk 0:02:48]} 16. Bd2 {[%clk 0:02:45]}  O-O-O {[%clk 0:02:45]} 17. Ng3 {[%clk 0:02:27]}  Nxg3 {[%clk 0:02:38]} 18. hxg3 {[%clk 0:02:27]}  Ba4 {[%clk 0:02:33]} 19. Rb2 {[%clk 0:02:14]}  a6 {[%clk 0:02:25]} 20. Be2 {[%clk 0:02:04]}  Bb5 {[%clk 0:02:22]} 21. Rxb5 {[%clk 0:01:58]}  axb5 {[%clk 0:02:22]} 22. Qxb5 {[%clk 0:01:56]}  Nc6 {[%clk 0:02:12]} 23. Qd3 {[%clk 0:01:48]}  Rh8 {[%clk 0:02:07]} 24. Rh3 {[%clk 0:01:46]}  Ne7 {[%clk 0:02:02]} 25. g4 {[%clk 0:01:42]}  Qb6 {[%clk 0:01:57]} 26. Qc4+ {[%clk 0:01:39]}  Nc6 {[%clk 0:01:53]} 27. Rb3 {[%clk 0:01:37]}  Rh1+ {[%clk 0:01:50]} 28. Kf2 {[%clk 0:01:37]}  Qa7 {[%clk 0:01:44]} 29. Bf3 {[%clk 0:01:36]}  Rd7 {[%clk 0:01:30]} 30. Bxc6 {[%clk 0:01:19]}  Rc7 {[%clk 0:01:19]} 31. Rxb7 {[%clk 0:00:47]}  Rxb7 {[%clk 0:01:09]} 32. Bxb7+ {[%clk 0:00:45]}  Kxb7 {[%clk 0:01:10]} 33. Qb5+ {[%clk 0:00:34]}  Qb6 {[%clk 0:01:01]} 34. Qd7+ {[%clk 0:00:33]}  Qc7 {[%clk 0:00:56]} 35. Qxd4 {[%clk 0:00:30]}  Qxc2 {[%clk 0:00:50]} 36. Qb4+ {[%clk 0:00:28]}  Kc8 {[%clk 0:00:44]} 37. Qf8+ {[%clk 0:00:27]}  Kb7 {[%clk 0:00:43]} 38. Qxf7+ {[%clk 0:00:26]}  Kb8 {[%clk 0:00:41]} 39. Qe8+ {[%clk 0:00:23]}  Kb7 {[%clk 0:00:41]} 40. Qd7+ {[%clk 0:00:23]}  Kb8 {[%clk 0:00:41]} 41. Qd6+ {[%clk 0:00:23]}  Kb7 {[%clk 0:00:41]} 42. Qb4+ {[%clk 0:00:12]}  Ka8 {[%clk 0:00:39]} 43. Qa5+ {[%clk 0:00:12]}  Kb7 {[%clk 0:00:39]} 44. Qb4+ {[%clk 0:00:12]}  Ka8 {[%clk 0:00:39]} 45. Qc3 {[%clk 0:00:13]}  Qe4 {[%clk 0:00:25]} 46. Qc8+ {[%clk 0:00:13]}  Ka7 {[%clk 0:00:21]} 47. Be3+ {[%clk 0:00:13]}  Qxe3+ {[%clk 0:00:17]} 48. Kxe3 {[%clk 0:00:13]} 1-0